Cogmind - Beta 15 *** ADVENTURER MODE // 2025.06.13 @ 15:40:09 Player: Gilbert Result: Destroyed by as-28843 with Assembled Blade Performance ------------- Evolutions (0) 0 Regions Visited (2) 400 Robots Destroyed (2) 10 Value Destroyed (13) 13 Prototype IDs (2) 40 Alien Tech Used (0) 0 Bonus (0) 0 TOTAL SCORE: 463 Bonus ------- None Cogmind --------- Core Integrity 0/250 Matter 300/300 Energy 79/100 System Corruption 0% Temperature Cool (0) Movement Core (150) Ox2 Location -10/Mines Parts ------- > --- POWER (1) -------- (None) > --- PROPULSION (2) --- (None) > --- UTILITY (2) ------ Small Storage Unit ECM Suite > --- WEAPON (2) ------- (None) > --- INVENTORY (8) ---- Light Ion Engine Light Ion Engine Compact Wheel Compact Wheel Hover Unit Seismic Detector Light Assault Rifle Mining Laser Peak State ------------ > --- POWER ------------ Ion Engine > --- PROPULSION ------- Wheel Compact Wheel > --- UTILITY ---------- Small Storage Unit Seismic Detector > --- WEAPON ----------- EM Pulse Gun Medium Laser > --- INVENTORY -------- Light Ion Engine Light Assault Rifle [Rating: 7] Favorites ----------- Power Ion Engine Engine Ion Engine Propulsion Hover Unit Wheel Compact Wheel Hover Unit Hover Unit Utility Small Storage Unit Device ECM Suite Storage Small Storage Unit Weapon Medium Laser Energy Gun Medium Laser Build | -11 -10 -10 ------- Run | Yrd Mat Min Slots Evolved . | . . . Power . | . . . Propulsion . | . . . Utility . | . . . Weapon . | . . . Parts Attached 11 | 8 3 . Power 1 | 1 . . Engine 1 | 1 . . Core . | . . . Reactor . | . . . Propulsion 5 | 3 2 . Treads . | . . . Leg . | . . . Wheel 3 | 3 . . Hover 2 | . 2 . Flight . | . . . Utility 3 | 2 1 . Device 2 | 1 1 . Storage 1 | 1 . . Processor . | . . . Hackware . | . . . Protection . | . . . Artifact . | . . . Weapon 2 | 2 . . Energy Gun 2 | 2 . . Energy Cannon . | . . . Ballistic Gun . | . . . Ballistic Cannon . | . . . Launcher . | . . . Special Weapon . | . . . Impact Weapon . | . . . Slashing Weapon . | . . . Piercing Weapon . | . . . Special Melee Weapon . | . . . Unidentified Prototypes . | . . . Parts Lost 5 | . . 5 Power 1 | . . 1 Propulsion 2 | . . 2 Utility . | . . . Weapon 2 | . . 2 Highest Loss Streak 3 | . . 3 To Critical Strikes . | . . . Average Backups 6 | 2 6 8 Power 1 | . 2 2 Propulsion 2 | . 2 3 Utility . | . . 1 Weapon 2 | 1 2 2 Tool/Special . | . . . Unused Backups 6 | . 1 5 Power 2 | . . 2 Propulsion 1 | . . 1 Utility . | . . . Weapon 3 | . 1 2 Tool/Special . | . . . Average Slot Usage (%) 91 | . 100 84 Engine 13 | . 14 12 Wheel 1 | . 4 . Hover 21 | . 23 19 Device 14 | . 14 14 Storage 14 | . 14 14 Energy Gun 24 | . 28 22 Peak Build Rating 7 | 7 7 7 Average Rating 6 | 4 7 5 On Entrance 4 | . 7 7 Naked Turns . | . . . Heaviest Build 16 | 15 16 16 Greatest Support 32 | 32 32 12 Greatest Overweight (x) 5 | 3 2 5 Average Overweight (x) 1 | . . 1 Largest Inventory Capacity 8 | 8 8 8 Average Capacity 7 | 7 8 8 Most Carried 8 | 5 8 8 Average Carried 7 | 2 7 8 Final Capacity 8 | 8 8 8 Final Carried 8 | 4 8 8 Class Distribution -------------------- 100% | Mutant Dominant Class ---------------- Mutant | -10/Materials Mutant | -10/Mines Resources | -11 -10 -10 ----------- Run | Yrd Mat Min Matter Collected 310 | 280 . 30 Remotely . | . . . Salvage Created 89 | 89 . . Parts 5 | 5 . . Haulers Intercepted . | . . . Recyclers Shooed 1 | . . 1 Parts Field Recycled . | . . . Retrieved Matter . | . . . Parts Self-Destructed . | . . . Prevented . | . . . Kills | -11 -10 -10 ------- Run | Yrd Mat Min Combat Hostiles Destroyed . | . . . Classes Destroyed 2 | 2 . . Tunneler 1 | 1 . . Recycler 1 | 1 . . Best Kill Streak 2 | 2 . . Combat Bots Only . | . . . Max Kills in Single Turn 1 | 1 . . Gunslinging . | . . . Exploded . | . . . Melee . | . . . Uniques/NPCs Destroyed . | . . . Combat | -11 -10 -10 -------- Run | Yrd Mat Min Hostile Shots Fired 41 | . 1 40 Missed 15 | . 1 14 Hits 26 | . . 26 Melee 18 | . . 18 Projectile 8 | . . 8 Damage Taken 520 | . . 520 Core 270 | . . 270 Absorbed by Shields . | . . . Ignored by Resistances 142 | . . 142 Regen/Repaired (Parts) 13 | . 13 . Core Remaining (%) 100 | 100 . . Volleys Fired 4 | 4 . . Largest 2 | 2 . . Hottest 90 | 90 . . Shots Fired 8 | 8 . . Gun 8 | 8 . . Cannon . | . . . Launcher . | . . . Special . | . . . Kinetic . | . . . Thermal 4 | 4 . . Explosive . | . . . Electromagnetic 4 | 4 . . Robot Hit Streak 4 | 4 . . Robot Miss Streak 1 | 1 . . Penetration Max . | . . . Secondary Targets . | . . . Shots Hit Robots 7 | 7 . . Core Hits 4 | 3 . 1 Critical Kills . | . . . Critical Parts Destroyed . | . . . Critical Strikes . | . . . Melee Attacks . | . . . Impact . | . . . Slashing . | . . . Piercing . | . . . Sneak Attacks . | . . . Combat Hostiles . | . . . Follow-up Attacks . | . . . Damage Inflicted 97 | 88 . 9 Guns 88 | 88 . . Cannons . | . . . Explosions . | . . . Melee . | . . . Ramming 9 | . . 9 Kinetic . | . . . Thermal 50 | 50 . . Explosive . | . . . Electromagnetic 38 | 38 . . Impact . | . . . Slashing . | . . . Piercing . | . . . Highest Corruption . | . . . Average Corruption . | . . . Corruption Purged . | . . . Corruption Blocked . | . . . Overload Shots . | . . . Overflow Damage . | . . . Projectiles . | . . . Explosions . | . . . Melee . | . . . Knockbacks . | . . . Impact . | . . . Kinetic . | . . . Secondary . | . . . Self-Inflicted Damage 4 | . . 4 Shots . | . . . Rammed 3 | . . 3 Targets Rammed 3 | . . 3 Kicked . | . . . Crushed . | . . . Highest Temperature 60 | 60 . . Average Temperature 33 | 33 . . Received Heat Transfer . | . . . Siege Activations . | . . . Martial Activations . | . . . Shielding Activations . | . . . Robots Disrupted . | . . . Combat Hostiles . | . . . Robots Corrupted . | . . . Combat Hostiles . | . . . Parts Fried . | . . . Impact Corruptions . | . . . Robots Melted . | . . . Combat Hostiles . | . . . Parts Melted . | . . . Heat Transferred 148 | 148 . . Parts Sabotaged . | . . . Parts Stolen . | . . . Parts Stripped . | . . . Power Chain Reactions . | . . . Alert | -11 -10 -10 ------- Run | Yrd Mat Min Maximum Alert Level . | . . . Low Security (%) 100 | 100 100 100 Level 1 . | . . . Level 2 . | . . . Level 3 . | . . . Level 4 . | . . . Level 5 . | . . . High Security . | . . . Max Security . | . . . Peak Influence 5 | 5 4 . Initial . | . . . Average . | 1 . . Influence Increases 14 | 10 4 . Destroy 0b10 Robot/NC 10 | 10 . . Successful Hack 4 | . 4 . Influence Decreases 14 | 10 4 . Time Decay 14 | 10 4 . Squads Dispatched . | . . . Investigation . | . . . Extermination . | . . . Reinforcement . | . . . Assault . | . . . Garrison . | . . . Intercept . | . . . Searches Triggered . | . . . Construction Impeded . | . . . Haulers Reinforced . | . . . Active Scanning Responses . | . . . Cargo Convoy Interrupts . | . . . Stealth | -11 -10 -10 --------- Run | Yrd Mat Min Distress Signals . | . . . Communications Jammed . | . . . Distress Signals . | . . . Times Spotted 7 | . 2 5 Peak Tracking Total 3 | . 2 3 Tactical Retreats 2 | . . 2 Traps | -11 -10 -10 ------- Run | Yrd Mat Min Traps Triggered . | . . . Indirectly . | . . . Trap Hack Attempts . | . . . Triggered . | . . . Disarmed . | . . . Reprogrammed . | . . . Reused . | . . . Traps Extracted . | . . . Installed . | . . . Triggered . | . . . Machines | -11 -10 -10 ---------- Run | Yrd Mat Min Machines Disabled . | . . . Max in Single Turn . | . . . Machines Repaired . | . . . Machines Dismantled . | . . . Machines Sabotaged . | . . . Overloaded Fab Kills . | . . . Hacking | -11 -10 -10 --------- Run | Yrd Mat Min Machines Accessed 3 | . 3 . Terminals 2 | . 2 . Fabricators . | . . . Repair Stations 1 | . 1 . Recycling Units . | . . . Scanalyzers . | . . . Garrison Access . | . . . Total Hacks 5 | . 5 . Successful 3 | . 3 . Failed 2 | . 2 . Catastrophic . | . . . Database Lockouts . | . . . Manual 1 | . 1 . Terminals 3 | . 3 . Fabricators . | . . . Repair Stations 2 | . 2 . Recycling Units . | . . . Scanalyzers . | . . . Garrison Access . | . . . Terminal Hacks 1 | . 1 . Prototype ID Bank 1 | . 1 . Fabricator Hacks . | . . . Repair Station Hacks 2 | . 2 . Scan Component 1 | . 1 . Repair 1 | . 1 . Recycling Unit Hacks . | . . . Scanalyzer . | . . . Garrison Access Hacks . | . . . Unauthorized Hacks . | . . . Terminals . | . . . Fabricators . | . . . Repair Stations . | . . . Recycling Units . | . . . Scanalyzers . | . . . Garrison Access . | . . . Data Cores Recovered . | . . . Used . | . . . Hacking Detections 3 | . 3 . Full Trace Events . | . . . Feedback Events . | . . . Feedback Blocked . | . . . Robot Schematics Acquired . | . . . Robots Built . | . . . Authchips . | . . . Time . | . . . Total Robot Build Rating . | . . . Part Schematics Acquired . | . . . Parts Built . | . . . Authchips . | . . . Time . | . . . Total Part Build Rating . | . . . Parts Repaired 1 | . 1 . Time 26 | . 26 . Parts Recycled . | . . . Recycled Matter . | . . . Retrieved Matter . | . . . Retrieved Components . | . . . Parts Scanalyzed . | . . . Part Schematics Acquired . | . . . Parts Damaged . | . . . Bothacking | -11 -10 -10 ------------ Run | Yrd Mat Min Used RIF Installer . | . . . Robots Hacked . | . . . Non-combat . | . . . Combat . | . . . Robot Hacks Applied . | . . . Relay Couplers Released . | . . . Fabnet Peak Effective % . | . . . Robots Rewired . | . . . Allies Hacked . | . . . Hacks Repelled . | . . . Allies | -11 -10 -10 -------- Run | Yrd Mat Min Total Allies . | . . . Largest Group . | . . . Highest-Rated Group . | . . . Highest-Rated Ally . | . . . Total Orders . | . . . Ally Attacks . | . . . Total Damage . | . . . Kills . | . . . Allies Corrupted . | . . . Allies Melted . | . . . Intel | -11 -10 -10 ------- Run | Yrd Mat Min Active Infowar (turns) 545 | 32 221 292 Seismic 147 | 32 115 . ECM 398 | . 106 292 Robot Analysis Total . | . . . Derelict Logs Recovered . | . . . Drone Launches . | . . . Drone Recoveries . | . . . Exploration | -11 -10 -10 ------------- Run | Yrd Mat Min Turns Passed 584 | 71 221 292 Spaces Moved 428 | 48 180 200 Core 61 | 20 . 41 Treads . | . . . Legs . | . . . Wheels 52 | 28 24 . Hover 315 | . 156 159 Flight . | . . . Fastest Speed 50 | 50 100 116 Average Speed 120 | 85 115 133 Slowest Speed 300 | 200 185 300 Overloaded Moves . | . . . Propulsion Burnouts . | . . . Robots Hopped . | . . . Potential Cave-ins . | . . . Cave-ins Triggered . | . . . Exploration Rate (%) 26 | 4 26 48 Regions Visited 2 Branch Regions 1 Pre-discovered Areas . | . . . Known Exits Taken . | . . . Unknown Exits Taken 2 | 1 1 . Scrap Searched 1 | . . 1 Spaces Dug . | . . . Terrain Destroyed . | . . . Melee . | . . . Projectile . | . . . AOE . | . . . Terrain Rammed . | . . . Walls Destroyed . | . . . Machines Disabled . | . . . Actions | -11 -10 -10 --------- Run | Yrd Mat Min Total 485 | 69 194 222 Wait 20 | . 1 19 Move 426 | 47 179 200 Hop . | . . . Pick Up 18 | 10 8 . Fast Attach 1 | 1 . . Attach 6 | 6 . . Detach . | . . . Swap 4 | 1 3 . Drop 3 | . 3 . Fire 4 | 4 . . Melee . | . . . Ram 3 | . . 3 Kick . | . . . Crush . | . . . Escape Stasis . | . . . Rewire . | . . . Trap . | . . . Miscellaneous . | . . . Route ------- -11/Scrapyard -10/Materials -10/Mines (discovered 1 exit: [*Mat]) History --------- Turn | Location | Event 7 | -11/Scrapyard | Discovered new exit (range 16) 72 | -11/Scrapyard | Entered Materials 159 | -10/Materials | Discovered new exit (range 16) 226 | -10/Materials | Repaired Seismic Detector? 293 | -10/Materials | Entered Mines 311 | -10/Mines | Build established: Mutant 351 | -10/Mines | Assembled infested the area 356 | -10/Mines | Assisted by a Guerilla fighting off Assembled 534 | -10/Mines | Lost 3 parts (2n1w) 551 | -10/Mines | Core integrity fell below 50% 563 | -10/Mines | Found a hidden stash of uninstalled traps 575 | -10/Mines | Discovered new exit (range 9) 578 | -10/Mines | Core integrity fell below 20% 585 | -10/Mines | Destroyed by as-28843 with Assembled Blade Last Messages --------------- JK-0SE(h) destroyed. as-28843 sneak attacks. U-05 Engineer destroyed. Hover Unit destroyed. EM Pulse Gun destroyed. K-01 Serf collects debris. Slammed into K-01 Serf. K-01 Serf destroyed. Searching scrap... Found Welding Torch. Found 45 Matter. Slammed into R-06 Scavenger. Med. Laser destroyed. Slammed into T-07 Excavator. Ion Engine destroyed. A stash of uninstalled traps is collected here! K-01 Serf cleans the Seismic Survey Station. EXIT=FOUND K-01 Serf cleans the Seismic Survey Station. Map ----- +----------------------------------------------------+ | | | | | | | ????????????????????????????????? | | ????????????????????????????????? | | ????????????????????????????????? | | ????????????????????????????????? | | ????????????????????????????????? | | ????????????????????????????????? | | ????????????????????????????????? | | ????????????????????????????????? | | ?????????????????????###????????? | | ????????????????????? #???????? | | ????????????????????? #???????? | | ????????????????????? #???????? | | ????????????????????? #???????? | | ????????????????????? #???????? | | ?????????????????????# ##??????? | | ?????????????????????# ##?????? | | ?????????#####???????# ##????? | | ????????## ##??????# t ##???? | | ???????## ##?????# ##??? | | ??????## && ##????# """ ##?? | | ??????# & & #????# """ < #?? | | ??????##### & ###### """ #?? | | ??????????## a@ #??? | | ???????????# ####### k #??? | | ???????????## #?????### #??? | | ????????????## ##????????# #?? | | ?????????????## #??????????# #?? | | ??????????????#%#??????????? %#?? | | ??? ??????????# #???????????? #?? | | ?? ??##??????# #??????##### #?? | | ??? ## ??????# ######## #?? | | ??? ??????# #??????? | | ??? ??????##########%#??????? | | ??? ?????###########%#??????? | | ???#! #?????# %= % | #??????? | | ?###!! ##????# ##########??????? | | ##"#%%! ##???# #???????????????? | | # ==* #???# #???????????????? | | *=% ???## #???????????????? | | " #??## #???????????????? | | ???# #???????????????? | | # #???# #???????????????? | | ?# ]%##### #???????????????? | | ??# *%% #???????????????? | | ??# ! ##???????????????? | | ?## ##### #????????????????? | | ## ##???## #???????????????? | +----------------------------------------------------+ Best States ------------- Heat Dissipation 25 Energy Generation 10 Energy Capacity 250 Matter Stores 300 Matter Capacity 300 Sight Range 16 Terrain Scan Density 10 ECM Strength 1 Resistance: KI 20 Resistance: TH 20 Resistance: EX 20 Resistance: EM 20 Resistance: I 20 Resistance: S 20 Resistance: P 20 Evasion (%) 50 Offensive Hacking 10 Item Schematics ----------------- None Robot Schematics ------------------ None Fabricated ------------ Nothing Repaired ---------- Seismic Detector | 35% | -10/Materials Alien Tech Used ----------------- None Achievements -------------- None Challenges ------------ None Game ------ Seed TerrabombMatterShotgun Manual? 0 Play Time 00:23:29 Cumulative 14.2 hours Start 2025.06.13 @ 13:16:22 End 2025.06.13 @ 15:40:09 Sessions 1 Manual Loads 0 Difficulty Adventurer Special Mode None Game No. 5 Rogue 0 Adventurer 5 Explorer 0 Win Type - Total 0 Types 0/0/0/0/0/0/0/0/0/0 Lore% 4 Gallery% 6 Achievement% 9 Wizard Run 0 Options --------- Layout 1 ASCII 0 Keyboard 0 Movement Numpad Keybinds 0 Fullscreen 1 Font 32/SmallcapsGlow Map View 50x35 Zoom Use 0% Tactical HUD 0 Map Filters NONE Filters NONE Steam 0 RUN: e523deb0-6594-4148-80ad-daabc1406de1